bitfinex-derivatives/quotes_ETHF0:USTF0_20241026
["timestamp","ask_amount","ask_price","bid_price","bid_amount"]
[1729955163406,1.0204,2452.6,2452.0,0.425]
[1729955163606,7.0980786,2452.9,2452.1,3.2078]
[1729955163811,0.40818,2452.5,2452.2,3.2781986]
[1729955164008,3.2078,2452.9,2452.2,0.4502]
[1729955164009,6.5014886,2452.9,2452.2,0.4502]
[1729955164204,0.40814,2452.7,2452.4,0.40818]
[1729955164809,6.5014886,2452.9,2452.2,0.40821]
[1729955164810,0.40817,2452.5,2452.2,0.40821]
[1729955165116,0.40822,2452.2,2452.1,3.2078]
[1729955165317,2.8699886,2452.7,2452.1,3.2078]
[1729955165615,0.40822,2452.2,2452.1,3.2078]
[1729955166515,0.8968,2452.4,2451.7,0.412]
[1729955166716,0.40828,2451.9,2451.7,0.412]
[1729955167107,0.8968,2452.4,2451.8,2.8699886]
[1729955167321,0.4474,2452.4,2451.9,3.2078]
[1729955167513,0.4474,2452.4,2451.9,3.61606]
[1729955167718,0.40824,2452.1,2451.9,3.2078]
[1729955168019,0.4474,2452.4,2452.0,0.40825]
[1729955168020,0.40822,2452.2,2452.0,0.40825]
[1729955168504,0.40822,2452.2,2451.9,3.2078]
[1729955168710,0.40825,2452.1,2451.9,3.2078]
[1729955168916,0.4474,2452.4,2451.9,3.2078]
[1729955169307,0.40823,2452.2,2451.9,3.61606]
[1729955169614,0.40822,2452.3,2452.0,0.40825]
[1729955169813,0.40823,2452.2,2451.9,3.61607]
[1729955170610,0.40825,2452.0,2451.9,3.2078]
[1729955170810,0.40825,2452.0,2451.6,0.4502]
[1729955170811,4.0784,2452.0,2451.6,0.4502]
[1729955171016,0.40829,2451.8,2451.6,0.4502]
[1729955171717,1.46924,2452.3,2451.7,4.0792]
[1729955171718,0.4487,2452.3,2451.7,4.0792]
[1729955171927,0.444,2452.2,2451.6,6.5279886]
[1729955172121,0.40826,2452.0,2451.9,3.2078]
[1729955173215,0.40821,2452.3,2452.0,0.40824]
[1729955173415,3.6336,2452.6,2452.1,0.4334]
[1729955173718,3.61596,2452.6,2452.3,0.4082]
[1729955174715,3.2078,2452.6,2452.3,0.4082]
[1729955174916,3.2078,2452.6,2452.2,6.5147886]
[1729955175120,0.40813,2452.8,2452.5,0.40816]
[1729955175420,0.40814,2452.7,2452.6,0.452]
[1729955175616,3.6336,2452.9,2452.3,0.452]
[1729955176120,0.40814,2452.7,2452.5,0.40816]
[1729955176327,3.6336,2452.9,2452.4,0.40818]
[1729955176622,0.40816,2452.6,2452.3,0.8602]
[1729955177221,0.40817,2452.5,2452.3,0.8602]
[1729955177725,0.40816,2452.6,2452.3,0.8602]
[1729955178225,3.6336,2452.9,2452.3,0.452]
[1729955178422,0.40819,2452.4,2452.3,0.452]
[1729955179023,3.6336,2452.9,2452.3,3.3219886]
[1729955179224,0.40812,2452.8,2452.5,0.40817]
[1729955179433,3.6336,2452.9,2452.5,0.40817]
[1729955179434,4.04171,2452.9,2452.5,2.8699886]
[1729955179615,6.5189886,2453.4,2452.6,0.4109]
[1729955179815,0.4321,2453.3,2453.0,0.40808]
[1729955180018,0.84014,2453.3,2453.1,0.40807]
[1729955180218,0.84014,2453.3,2452.9,3.7251886]
[1729955180418,0.84014,2453.3,2453.0,0.40808]
[1729955180629,0.84014,2453.3,2452.9,3.7251886]
[1729955180630,0.4321,2453.3,2452.9,3.7251886]
[1729955180824,0.84014,2453.3,2453.1,3.2078]
[1729955181226,0.84014,2453.3,2453.1,4.02677]
[1729955181425,0.922,2453.6,2453.1,3.6187]
[1729955181728,3.2078,2453.7,2453.1,3.6187]
[1729955181729,0.40798,2453.7,2453.4,3.61581]
[1729955181931,3.2078,2454.0,2453.5,0.408]
[1729955181932,0.40796,2453.8,2453.5,0.408]
[1729955182126,0.40796,2453.8,2453.5,0.8442]
[1729955182525,0.40798,2453.7,2453.5,0.4362]
[1729955183230,3.2078,2454.0,2453.4,3.61581]
[1729955183231,0.40794,2453.9,2453.4,3.61581]
[1729955183524,0.4321,2454.1,2453.7,3.2078]
[1729955183930,0.4321,2454.1,2453.7,3.61575]
[1729955183931,0.40793,2454.0,2453.7,3.61575]
[1729955184232,0.84002,2454.1,2453.8,0.40795]
[1729955184719,0.4321,2454.1,2453.8,2.8699886]
[1729955184918,0.4321,2454.1,2453.8,3.7039886]
[1729955185122,0.4321,2454.1,2453.8,1.24194]
[1729955185422,0.40795,2453.8,2453.7,3.2078]
[1729955188623,3.2078,2454.4,2453.7,10.1529886]
[1729955188933,0.4223,2454.5,2453.9,0.40793]
[1729955189131,0.4223,2454.5,2453.7,6.0777886]
[1729955189330,0.40786,2454.4,2454.2,0.40789]
[1729955189524,0.4223,2454.5,2454.0,3.2078]
[1729955189725,0.4223,2454.5,2454.1,0.4533]
[1729955189726,0.40788,2454.3,2454.1,0.4533]
[1729955189925,0.4223,2454.5,2454.1,0.4533]
[1729955190125,0.4223,2454.5,2454.1,0.86119]
[1729955190126,0.40786,2454.4,2454.1,0.86119]
[1729955190336,0.40788,2454.3,2454.1,0.4533]
[1729955191537,0.4223,2454.5,2454.1,0.4533]
[1729955191934,0.40788,2454.3,2454.1,0.4533]
[1729955192325,0.4223,2454.5,2454.1,0.4533]
[1729955192531,2.8699886,2454.2,2453.5,3.6158]
[1729955192833,2.8699886,2454.2,2453.6,0.40798]
[1729955193028,2.8699886,2454.0,2453.5,4.0647]
[1729955193228,0.40799,2453.6,2453.5,4.0647]
[1729955193428,0.40799,2453.6,2453.5,3.6252]
[1729955193634,0.4324,2453.9,2453.5,3.6252]
[1729955194138,0.40799,2453.6,2453.5,3.6252]
[1729955194334,0.4324,2453.9,2453.5,3.6252]
[1729955194640,0.40797,2453.7,2453.5,3.6252]
[1729955195729,0.4324,2453.9,2453.5,3.6252]
[1729955195932,0.40799,2453.6,2453.5,3.6252]
[1729955196132,0.4324,2453.9,2452.9,0.446]
[1729955196133,0.40804,2453.3,2453.0,1.25878]
[1729955196335,1.01993,2453.7,2453.0,1.25878]
[1729955196537,0.40806,2453.2,2453.0,0.8507]
[1729955196839,0.40807,2453.1,2453.0,0.8507]
[1729955197137,0.40805,2453.3,2453.0,1.25878]
[1729955197344,0.40801,2453.5,2453.2,3.61584]
[1729955198041,3.2078,2453.8,2453.2,3.2078]
[1729955198233,3.61577,2453.8,2453.5,0.408]
[1729955198430,3.2078,2453.8,2453.2,6.0777886]
[1729955198732,0.40801,2453.5,2453.3,0.40804]
[1729955198941,0.40801,2453.5,2453.2,6.4858286]
[1729955199634,0.40802,2453.4,2453.2,6.4858286]
[1729955200035,3.2078,2453.8,2453.3,4.076]
[1729955200234,0.40801,2453.5,2453.3,0.40804]
[1729955200542,3.2078,2453.8,2453.2,6.0777886]
[1729955200842,0.40807,2453.1,2453.0,0.8507]
[1729955201136,1.02002,2453.5,2452.5,3.2078]
[1729955201137,0.40815,2452.6,2452.5,3.2078]
[1729955202236,0.4254,2452.9,2452.5,3.61597]
[1729955202441,0.40815,2452.6,2452.5,3.2078]
[1729955202832,0.40817,2452.5,2452.4,0.4521]
[1729955203234,1.44569,2452.9,2452.4,0.4521]
[1729955203440,0.40812,2452.8,2452.4,0.4521]
[1729955203638,0.40817,2452.5,2452.4,0.4521]
[1729955203843,0.4254,2452.9,2452.2,3.2078]
[1729955204042,0.4082,2452.3,2452.2,3.2078]
[1729955204950,0.40824,2452.1,2452.0,0.4515]
[1729955205341,1.02042,2452.6,2452.0,0.4515]
[1729955205342,0.40823,2452.2,2452.0,0.4515]
[1729955205648,0.40824,2452.1,2452.0,0.4515]
[1729955206141,4.5882,2452.8,2452.0,0.4515]
[1729955206349,0.40824,2452.1,2452.0,0.4515]
[1729955206845,0.40823,2452.2,2452.0,0.4515]
[1729955207146,0.40823,2452.2,2452.0,0.85975]
[1729955207446,0.40824,2452.1,2452.0,0.4515]
[1729955208043,0.40825,2452.0,2451.9,3.2078]
[1729955208550,1.44654,2452.3,2451.5,3.93920307]
[1729955208551,1.02061,2452.1,2451.5,3.2078]
[1729955208740,1.02061,2452.1,2451.4,0.4464]
[1729955208741,1.02061,2452.1,2451.4,0.85475]
[1729955208943,0.40832,2451.6,2451.4,0.85475]
[1729955209248,0.4434,2452.2,2451.5,0.40834]
[1729955209249,0.40829,2451.8,2451.5,0.40834]
[1729955209459,0.40829,2451.8,2451.5,3.61614]
[1729955209650,0.40831,2451.7,2451.5,3.2078]
[1729955210647,0.4083,2451.8,2451.5,3.2078]
[1729955211354,0.4083,2451.8,2451.5,3.61614]
[1729955211846,7.15070307,2452.4,2451.6,4.0792]
[1729955211847,3.6219,2452.4,2451.6,4.0792]
[1729955212045,0.40823,2452.2,2451.9,0.40826]
[1729955212249,0.4141,2452.4,2451.9,0.40826]
[1729955212250,0.40821,2452.3,2451.9,0.40826]
[1729955212554,0.40821,2452.3,2452.0,0.85755]
[1729955213151,0.40821,2452.3,2452.2,3.2078]
[1729955213548,3.2078,2452.8,2452.2,3.2078]
[1729955213745,0.40819,2452.4,2452.3,0.437]
[1729955214655,0.40818,2452.5,2452.3,0.437]
[1729955214856,0.40815,2452.7,2452.4,0.40818]
[1729955215056,0.40814,2452.7,2452.3,0.84519]
[1729955215253,3.6363,2452.8,2452.3,0.437]
[1729955215449,0.40812,2452.9,2452.6,0.40815]
[1729955215752,0.40812,2452.9,2452.6,0.40814]
[1729955215962,6.73660307,2453.1,2452.6,0.442]
[1729955216146,3.2078,2453.1,2452.6,0.442]
[1729955216349,3.2078,2453.1,2452.7,0.40814]
[1729955216550,0.40812,2452.9,2452.6,0.85015]
[1729955217658,3.2078,2453.1,2452.6,0.85015]
[1729955217659,0.4081,2453.0,2452.6,0.442]
[1729955217851,0.4081,2453.0,2452.7,0.40814]
[1729955218254,0.4081,2453.0,2452.8,0.4119]
[1729955218649,3.2078,2453.1,2452.8,0.4119]
[1729955218861,0.4081,2452.9,2452.8,0.4119]
[1729955219855,0.40814,2452.7,2452.5,3.61596]
[1729955220057,0.40818,2452.5,2452.2,3.61601]
[1729955220360,3.52880307,2452.9,2452.2,3.2078]
[1729955220563,0.4082,2452.3,2452.2,3.2078]
[1729955220755,1.02031,2452.8,2452.2,3.2078]
[1729955220756,7.75681307,2453.1,2452.4,0.40818]
[1729955220956,0.40816,2452.6,2452.3,0.40819]
[1729955221259,3.52880307,2452.9,2452.2,3.2078]
[1729955221464,0.4082,2452.3,2452.2,3.2078]
[1729955221966,0.4082,2452.3,2451.4,3.52880307]
[1729955221967,0.40826,2452.0,2451.7,0.40829]
[1729955222151,0.40827,2451.9,2451.7,0.40829]
[1729955222347,0.40827,2451.9,2451.6,3.6553]
[1729955222348,0.40829,2451.8,2451.6,3.6553]
[1729955222552,4.54934307,2452.3,2451.6,3.6553]
[1729955222553,3.52880307,2452.3,2451.6,3.6553]
[1729955222757,0.4083,2451.7,2451.6,3.6553]
[1729955223062,0.40834,2451.5,2451.2,3.61618]
[1729955223252,1.02068,2451.9,2451.2,3.2078]
[1729955223253,3.52880307,2451.9,2451.2,3.2078]
[1729955223455,0.40837,2451.3,2451.2,3.2078]
[1729955223651,3.52880307,2451.9,2451.2,3.2078]
[1729955223852,0.40834,2451.5,2451.2,3.61617]
[1729955225157,0.40831,2451.7,2451.4,0.40834]
[1729955225356,0.4511,2452.0,2451.6,0.40831]
[1729955225357,0.40829,2451.9,2451.6,0.40831]
[1729955225558,3.2078,2452.2,2451.5,3.2078]
[1729955225756,0.40827,2452.0,2451.7,0.4083]
[1729955226063,0.40829,2451.8,2451.6,0.4155]
[1729955226276,0.40831,2451.7,2451.5,3.2078]
[1729955226564,4.99441307,2452.1,2451.5,3.2078]
[1729955226961,0.40832,2451.6,2451.5,3.2078]
[1729955227162,1.02064,2452.0,2451.2,0.8636]
[1729955227463,0.40834,2451.5,2451.3,0.40836]
[1729955228463,0.40834,2451.5,2451.2,1.27198]
[1729955228663,0.40833,2451.6,2451.3,0.40836]
[1729955228862,3.97380307,2452.1,2451.4,3.2078]
[1729955229063,0.445,2452.1,2451.4,3.2078]
[1729955229266,0.40833,2451.6,2451.4,3.2078]
[1729955229454,3.97380307,2452.1,2451.4,3.2078]
[1729955229658,3.97380307,2452.1,2451.4,3.61614]
[1729955229977,0.40832,2451.7,2451.4,3.61615]
[1729955230269,0.40829,2451.8,2451.5,0.40832]
[1729955230468,3.2078,2452.2,2451.4,3.2078]
[1729955230862,0.40829,2451.8,2451.5,0.40833]
[1729955231069,0.40829,2451.8,2451.6,0.40831]
[1729955231263,0.40828,2451.9,2451.6,0.40831]
[1729955231465,3.2078,2452.2,2451.5,0.4463]
[1729955231766,0.40833,2451.6,2451.4,3.2078]
[1729955231971,0.40833,2451.6,2451.4,3.61615]
[1729955232161,3.52880307,2452.1,2451.4,3.2078]
[1729955232359,4.54942307,2452.1,2451.4,3.61614]
[1729955233365,0.40832,2451.7,2451.4,3.61614]
[1729955233667,0.40832,2451.7,2451.5,0.40834]
[1729955234067,0.4137,2452.0,2451.4,3.61615]
[1729955234068,0.40833,2451.6,2451.4,3.61615]
[1729955234362,0.4137,2452.0,2451.4,3.61615]
[1729955234566,0.4083,2451.8,2451.5,0.40833]
[1729955235058,4.54942307,2452.1,2451.4,3.2078]
[1729955235059,3.52880307,2452.1,2451.4,3.2078]
[1729955235264,0.40828,2451.9,2451.7,0.4083]
[1729955235665,4.22838,2452.2,2451.8,0.40828]
[1729955235666,0.40826,2452.0,2451.8,0.40828]
[1729955235977,0.40828,2451.9,2451.7,0.4083]
[1729955236178,0.4083,2451.8,2451.6,0.40831]
[1729955236676,4.22838,2452.2,2451.5,0.40832]
[1729955236677,0.4083,2451.7,2451.5,0.40832]
[1729955237059,0.40834,2451.5,2451.4,3.2078]
[1729955237764,0.40842,2451.0,2450.8,0.40845]
[1729955237958,3.52880307,2451.6,2450.7,1.2633]
[1729955238179,1.02085,2451.5,2450.8,0.40844]
[1729955238463,0.40842,2451.0,2450.8,0.40844]
[1729955238668,0.40843,2451.0,2450.8,0.40845]
[1729955238874,3.89013506,2451.4,2450.7,4.056]
[1729955238875,0.4364,2451.3,2450.7,4.056]
[1729955239168,0.40845,2450.8,2450.5,0.4085]
[1729955239472,0.40845,2450.9,2450.7,0.40847]
[1729955240158,3.31282506,2451.2,2450.4,3.2078]
[1729955240368,3.31282506,2451.2,2450.7,0.40846]
[1729955240369,0.4436,2451.2,2450.7,0.40846]
[1729955240558,0.4084,2451.1,2450.8,0.40845]
[1729955240865,3.61611,2451.7,2451.5,0.40833]
[1729955241068,4.05161,2451.7,2451.5,0.40833]
[1729955241459,0.40832,2451.6,2451.5,0.40833]
[1729955242272,0.40832,2451.6,2451.3,3.2078]
[1729955242273,3.53126873,2452.2,2451.3,3.2078]
[1729955242467,0.4355,2452.2,2451.6,3.2078]
[1729955243466,3.96676873,2452.2,2451.6,3.2078]
[1729955243664,3.53126873,2452.0,2451.6,3.2078]
[1729955243871,3.53126873,2452.0,2451.7,0.4083]
[1729955243872,0.40829,2451.8,2451.7,0.4083]
[1729955244075,0.40832,2451.7,2451.5,0.40833]
[1729955244366,0.40832,2451.7,2451.6,0.40832]
[1729955244767,0.40832,2451.7,2451.5,0.40832]
[1729955244971,0.4083,2451.8,2451.6,0.40832]
[1729955245164,0.40834,2451.5,2451.4,0.4373]
[1729955245375,1.3725,2452.2,2451.1,0.4126]
[1729955245376,3.53126873,2451.7,2451.1,0.4126]
[1729955245669,0.40836,2451.4,2451.2,0.40838]
[1729955245862,0.4524,2451.6,2451.2,0.40838]
[1729955246062,0.4524,2451.6,2451.1,0.4126]
[1729955246269,0.4084,2451.2,2451.0,4.02751]
[1729955246469,0.4524,2451.6,2451.1,0.4084]
[1729955246667,0.40839,2451.2,2451.1,0.4084]
[1729955247266,0.40838,2451.3,2451.1,0.4084]
[1729955247464,0.40838,2451.3,2451.0,3.6191]
[1729955247465,0.40839,2451.2,2451.0,4.02751]
[1729955247771,0.4084,2451.1,2451.0,3.6191]
[1729955248077,0.4524,2451.6,2451.0,3.6191]
[1729955248078,0.40838,2451.3,2451.0,4.02751]
[1729955248283,0.4524,2451.6,2451.0,4.02751]
[1729955248567,0.40839,2451.2,2451.0,4.02751]
[1729955248962,0.4524,2451.6,2451.1,3.2078]
[1729955249164,0.40834,2451.5,2451.3,0.40836]
[1729955250263,0.4524,2451.6,2451.2,0.4309]
[1729955250472,0.40834,2451.5,2451.3,0.40836]
[1729955250673,0.40835,2451.5,2451.2,0.83927]
[1729955250975,0.40834,2451.5,2451.3,0.40836]
[1729955251169,0.4524,2451.6,2451.2,0.4309]
[1729955251472,0.86073,2451.6,2451.4,0.40834]
[1729955251775,0.4524,2451.6,2451.2,0.4309]
[1729955251969,0.40837,2451.3,2451.2,0.4309]
[1729955252165,0.4524,2451.6,2451.1,3.2078]
[1729955252472,0.4084,2451.1,2451.0,0.4113]
[1729955252974,0.4084,2451.1,2450.8,3.61624]
[1729955252975,0.40842,2451.1,2450.8,3.61624]
[1729955253171,0.40844,2450.9,2450.8,3.2078]
[1729955253472,0.40845,2450.8,2450.7,0.4524]
[1729955254066,2.00280355,2451.4,2450.7,0.4524]
[1729955254375,1.4293,2451.3,2450.7,0.86086]
[1729955254584,0.40844,2451.0,2450.7,0.86086]
[1729955254775,0.40844,2451.0,2450.8,0.40845]
[1729955255373,0.40844,2451.0,2450.7,0.4524]
[1729955255566,0.40844,2450.9,2450.7,0.86086]
[1729955256270,0.40844,2450.9,2450.7,0.4524]
[1729955256576,2.60833355,2451.3,2450.5,3.2078]
[1729955256577,6.13964228,2451.2,2450.5,3.2078]
[1729955256779,2.60848355,2451.0,2450.4,0.84831]
[1729955256971,0.4085,2450.5,2450.4,0.4398]
[1729955257170,0.4085,2450.5,2450.3,0.40853]
[1729955257577,0.40852,2450.4,2450.2,4.03665]
[1729955257775,0.40851,2450.5,2450.3,0.40853]
[1729955258078,2.35172,2450.9,2450.2,3.6281]
[1729955258079,1.3306,2450.9,2450.2,3.6281]
[1729955258376,0.40848,2450.7,2450.3,0.40854]
[1729955258573,0.40845,2450.8,2450.4,0.40851]
[1729955258875,0.8866,2450.9,2450.5,3.2078]
[1729955259075,0.85235,2450.9,2450.6,0.40848]
[1729955259281,0.4439,2450.9,2450.6,0.4326]
[1729955259473,0.40845,2450.8,2450.6,0.84108]
[1729955259675,0.4439,2450.9,2450.6,0.4326]
[1729955259984,0.85235,2450.9,2450.7,0.40846]
[1729955260281,0.85235,2450.9,2450.7,0.40847]
[1729955260486,0.4085,2450.8,2450.6,0.8493]
[1729955260778,0.4085,2450.8,2450.6,1.25781]
[1729955260980,0.40851,2450.7,2450.6,0.8493]
[1729955261182,0.4085,2450.8,2450.6,1.25783]
[1729955262075,0.4439,2450.9,2450.6,0.4326]
[1729955262076,0.40851,2450.7,2450.6,0.4326]
[1729955262277,0.40856,2450.4,2450.2,4.03669]
[1729955262579,0.40858,2450.3,2450.2,3.2078]
[1729955262989,7.15536873,2450.7,2450.2,3.2078]
[1729955263178,0.4163,2450.7,2450.3,0.40857]
[1729955263376,3.6241,2450.7,2450.3,0.40857]
[1729955263787,0.40855,2450.5,2450.3,0.40857]
[1729955264083,3.6241,2450.7,2450.2,3.2078]
[1729955264286,0.40854,2450.6,2450.4,0.40856]
[1729955264679,0.4163,2450.7,2450.2,3.2078]
[1729955264881,0.4163,2450.7,2450.3,0.40858]
[1729955264882,0.40856,2450.5,2450.3,0.40858]
[1729955265281,0.4163,2450.7,2450.2,3.2078]
[1729955265487,0.40854,2450.6,2450.4,0.40856]
[1729955265789,0.40854,2450.6,2450.2,3.2078]
[1729955265790,0.40854,2450.5,2450.3,0.40857]
[1729955266081,0.40854,2450.6,2450.4,0.40856]
[1729955266777,0.40854,2450.5,2450.3,0.40856]
[1729955267580,0.40854,2450.5,2450.4,0.40856]
[1729955267886,2.00370355,2450.7,2450.4,0.40856]
[1729955268086,0.40854,2450.6,2450.4,0.40856]
[1729955268681,2.00370355,2450.7,2450.4,0.40856]
[1729955268879,2.00370355,2450.7,2450.2,3.2078]
[1729955268880,0.40854,2450.5,2450.3,0.40857]
[1729955269683,0.40854,2450.5,2450.4,0.40856]
[1729955269986,0.40854,2450.6,2450.4,0.40856]
[1729955270284,2.00370355,2450.7,2450.4,0.40856]
[1729955270482,0.40854,2450.5,2450.4,0.40856]
[1729955270678,0.4163,2450.7,2450.4,0.40856]
[1729955270679,0.40854,2450.6,2450.4,0.40856]
[1729955271286,0.40854,2450.5,2450.4,0.40856]
[1729955271678,0.40854,2450.6,2450.4,0.40856]
[1729955271884,4.86574797,2450.8,2450.6,0.40852]
[1729955272184,3.27834442,2450.8,2450.6,0.40852]
[1729955273681,2.03130355,2450.9,2450.3,1.46415]
[1729955273682,0.40848,2450.9,2450.3,1.46415]
[1729955273875,0.40848,2450.9,2450.8,0.40849]
[1729955274292,0.40848,2450.9,2450.6,0.8719]
[1729955274487,0.4085,2450.8,2450.7,0.40851]
[1729955274690,1.58740355,2451.0,2450.7,0.40851]
[1729955274988,0.40849,2450.9,2450.7,0.40851]
[1729955275688,1.58740355,2451.0,2450.6,0.8719]
[1729955275892,0.40847,2451.0,2450.8,0.40848]
[1729955276390,1.99585355,2451.1,2451.0,0.40846]
[1729955277083,0.40845,2451.1,2451.0,0.40846]
[1729955277485,1.99585355,2451.1,2451.0,0.40846]
[1729955278189,1.58740355,2451.1,2451.0,0.40846]
[1729955278491,1.99584355,2451.1,2451.0,0.40846]
[1729955278884,1.58740355,2451.1,2451.0,0.40846]
[1729955279688,1.99584355,2451.1,2451.0,0.40846]
[1729955279990,1.58740355,2451.1,2451.0,0.40846]
[1729955280587,4.98637248,2451.3,2450.8,3.6344]
[1729955280588,1.58740355,2451.3,2450.8,3.6344]
[1729955280791,1.58740355,2451.3,2451.1,0.40843]
[1729955280792,1.99582355,2451.3,2451.1,0.40843]
[1729955280990,1.99582355,2451.3,2451.2,0.4122]
[1729955281190,0.40842,2451.3,2451.2,0.4122]
[1729955281495,1.99582355,2451.3,2451.2,0.4122]
[1729955283604,0.40842,2451.3,2451.2,0.4122]
[1729955284196,0.40843,2451.2,2451.0,0.40845]
[1729955284391,1.99960181,2451.2,2450.9,0.4302]
[1729955284599,1.59117181,2451.2,2451.1,0.40844]
[1729955284798,1.99960181,2451.2,2451.1,0.40844]
[1729955285000,1.59117181,2451.2,2451.1,0.40844]
[1729955285293,0.40842,2451.3,2451.1,7.2878]
[1729955285294,1.59117181,2451.3,2451.1,7.2878]
[1729955285499,1.59117181,2451.5,2451.2,4.4933]
[1729955285793,1.59117181,2451.7,2451.4,3.2078]
[1729955285995,1.59117181,2451.8,2451.7,0.40834]
[1729955286394,1.59117181,2451.9,2451.8,0.40833]
[1729955286594,6.332977,2452.2,2452.1,0.40828]
[1729955286595,2.52573806,2452.2,2452.1,0.40828]
[1729955286788,0.4092,2452.2,2451.8,0.8429]
[1729955286993,0.4092,2452.2,2452.1,0.40828]
[1729955287199,2.00057431,2452.2,2452.1,0.40828]
[1729955287590,3.70791237,2452.3,2452.2,0.40826]
[1729955287791,3.2078,2452.5,2452.3,0.40824]
[1729955287792,1.59137431,2452.4,2452.3,0.40824]
[1729955287995,5.20739431,2452.5,2452.3,0.40824]
[1729955288586,5.20739431,2452.5,2452.0,0.4163]
[1729955288587,4.79917431,2452.5,2452.0,0.4163]
[1729955288797,0.40824,2452.3,2452.0,0.4163]
[1729955288994,0.40828,2452.1,2452.0,0.4163]
[1729955289397,0.4272,2452.2,2452.0,0.4163]
[1729955289700,4.79917431,2452.5,2452.4,0.40823]
[1729955289897,3.2078,2452.5,2452.4,0.40823]
[1729955290102,1.59137431,2452.6,2452.5,0.40821]
[1729955290401,1.59137431,2452.6,2452.0,3.6241]
[1729955290698,1.99955431,2452.7,2452.5,0.40821]
[1729955292200,0.40818,2452.7,2452.5,0.40821]
[1729955292803,0.40818,2452.7,2452.1,1.0207]
[1729955293000,2.01857431,2452.9,2452.3,3.2078]
[1729955293201,3.72877442,2453.0,2452.6,3.2078]
[1729955293202,1.59137431,2453.0,2452.6,3.2078]
[1729955293402,4.86930873,2453.2,2452.7,0.4379]
[1729955293598,1.59137431,2453.3,2452.7,0.4379]
[1729955293905,6.92690442,2453.4,2453.0,0.40813]
[1729955293906,0.4412,2453.4,2453.0,0.40813]
[1729955294101,1.59137431,2453.7,2453.5,0.40803]
[1729955294300,0.40801,2453.8,2453.5,0.40803]
[1729955294495,0.40801,2453.8,2453.4,0.40805]
[1729955294701,2.86983442,2453.6,2453.1,0.8431]
[1729955294908,0.40805,2453.5,2453.1,1.2512]
[1729955295110,0.40805,2453.5,2453.0,1.3609]
[1729955295111,2.86983442,2453.6,2453.0,0.4379]
[1729955295406,0.40812,2453.1,2452.9,3.2078]
[1729955295600,2.86983442,2453.2,2452.6,3.61598]
[1729955295601,0.40813,2453.0,2452.6,3.61598]
[1729955295799,0.40813,2453.0,2452.6,3.2078]
[1729955295800,2.86983442,2453.0,2452.6,3.2078]
[1729955296210,0.40817,2452.8,2452.6,3.2078]
[1729955296611,0.40819,2452.7,2452.3,0.62037981]
[1729955296805,0.81899,2452.7,2452.5,3.2078]
[1729955297105,0.4349,2452.9,2452.5,3.2078]
[1729955297307,0.4108,2453.1,2452.9,0.40813]
[1729955297511,0.4108,2453.1,2452.6,0.4397]
[1729955297810,0.81892,2453.1,2452.8,0.40816]
[1729955298002,0.4108,2453.1,2452.6,0.4397]
[1729955298204,3.2078,2453.2,2452.8,3.2078]
[1729955298606,0.40814,2452.9,2452.8,3.2078]
[1729955298901,2.86983442,2453.0,2452.4,0.4256]
[1729955299109,0.40815,2452.9,2452.5,0.8525]
[1729955299407,0.4101,2453.1,2452.7,0.40816]
[1729955299408,0.81822,2453.1,2452.7,0.40816]
[1729955299615,0.81822,2453.1,2452.8,0.40816]
[1729955299823,0.40812,2453.1,2452.8,0.40816]
[1729955300226,3.2078,2453.2,2453.0,0.40812]
[1729955300521,3.2078,2453.2,2452.7,2.86983442]
[1729955300718,3.2078,2453.2,2452.9,0.40813]
[1729955301126,0.40809,2453.3,2452.7,2.86983442]
[1729955301630,0.40812,2453.1,2452.7,0.40817]
[1729955301923,6.52803442,2453.4,2452.6,3.6475]
[1729955301924,0.40815,2452.9,2452.6,3.6475]
[1729955302120,0.40816,2452.9,2452.6,0.4397]
[1729955302716,0.40816,2452.8,2452.6,0.4397]
[1729955302925,2.86983442,2453.2,2452.6,0.4397]
[1729955303223,0.40815,2452.9,2452.6,0.4397]
[1729955304223,2.86983442,2453.2,2452.5,0.4443]
[1729955304421,0.40819,2452.7,2452.3,4.34194981]
[1729955304628,0.40821,2452.6,2452.3,4.34194981]
[1729955304924,0.84559,2452.7,2452.4,0.40822]
[1729955305424,0.40822,2452.5,2452.2,0.40825]
[1729955305630,0.4374,2452.7,2452.1,1.2934]
[1729955305831,0.40823,2452.4,2452.1,1.70167]
[1729955306425,0.40825,2452.3,2452.1,0.8473]
[1729955306628,3.30723442,2452.7,2452.0,3.2078]
[1729955306629,0.40828,2452.1,2452.0,3.2078]
[1729955307225,0.40828,2452.1,2451.8,0.40833]
[1729955307424,0.40829,2452.0,2451.7,4.92403]
[1729955308225,0.40829,2452.1,2451.7,1.71623]
[1729955308431,0.4512,2452.2,2451.7,4.0624]
[1729955308626,0.40829,2452.0,2451.7,4.47074]
[1729955309122,0.4123,2452.1,2451.7,4.0624]
[1729955309318,0.4512,2452.2,2451.8,6.94823442]
[1729955309524,0.4512,2452.2,2452.0,0.40829]
[1729955309819,0.4512,2452.2,2451.8,3.28143442]
[1729955310025,3.61602,2452.5,2451.8,7.35983442]
[1729955310232,3.61602,2452.5,2452.0,2.86983442]
[1729955310425,3.61602,2452.5,2452.2,0.40825]
[1729955311440,3.61602,2452.5,2452.0,2.86983442]
[1729955311441,3.2078,2452.5,2452.3,0.40824]
[1729955311930,3.2078,2452.5,2452.0,2.86983442]
[1729955311931,0.40825,2452.3,2452.0,3.27811442]
[1729955312131,0.40824,2452.4,2452.1,0.40827]
[1729955312826,0.40824,2452.4,2451.8,3.28143442]
[1729955313027,3.2078,2452.5,2452.2,0.40826]